[Event "GER-chW Blitz 2019"]
[Site "Magdeburg"]
[Date "2019.05.25"]
[Round "22.4"]
[White "Siegl, Melina"]
[Black "Kreismann, Franziska"]
[Result "1-0"]
[ECO "B18"]
[WhiteElo "2029"]
[BlackElo "1589"]
[Annotator "NA"]
[PlyCount "58"]
[EventDate "2019.05.25"]
[EventType "tourn"]
[EventCountry "GER"]
[SourceTitle "playchess.com"]
[Source "ChessBase"]
[SourceQuality "1"]
[TimeControl "180+2"]

1. e4 {[%emt 0:00:00]} c6 {[%emt 0:00:00]} 2. d4 {[%emt 0:00:01]} d5 {[%emt 0:00:00]} 3. Nc3 {[%emt 0:00:01]} dxe4 {[%emt 0:00:01]} 4. Nxe4 {[%emt 0:00:01]} Bf5 {[%emt 0:00:01]} 5. Ng3 {[%emt 0:00:01]} Bg6 {[%emt 0:00:00]} 6. Nf3 {[%emt 0:00:01]} Nf6 {[%emt 0:00:02]} 7. c3 {[%emt 0:00:05]} e6 {[%emt 0:00:01]} 8. Be2 {[%emt 0:00:01]} Bd6 {[%emt 0:00:01]} 9. O-O {[%emt 0:00:12]} Bxg3 {[%emt 0:00:03]} 10. fxg3 {[%emt 0:00:05]} O-O {[%emt 0:00:02]} 11. Ne5 {[%emt 0:00:04]} Nd5 {[%emt 0:00:11]} 12. Nxg6 {[%emt 0:00:08]} fxg6 {[%emt 0:00:03]} 13. Bg4 {[%emt 0:00:13]} Rxf1+ {[%emt 0:00:12]} 14. Qxf1 {[%emt 0:00:02]} Qe7 {[%emt 0:00:01]} 15. Qe2 {[%emt 0:00:05]} Kf7 {[%emt 0:00:18]} 16. Bd2 {[%emt 0:00:01]} Nf6 {[%emt 0:00:03]} 17. Rf1 {[%emt 0:00:12]} Nbd7 {[%emt 0:00:03]} 18. Bh3 {[%emt 0:00:20]} Re8 {[%emt 0:00:03]} 19. g4 {[%emt 0:00:08]} Kg8 {[%emt 0:00:01]} 20. g5 {[%emt 0:00:09]} Nd5 {[%emt 0:00:09]} 21. Re1 {[%emt 0:00:08]} e5 {[%emt 0:00:07]} 22. Bxd7 {[%emt 0:00:15]} Qxd7 {[%emt 0:00:04]} 23. dxe5 {[%emt 0:00:02]} Qe6 {[%emt 0:00:07]} 24. c4 {[%emt 0:00:06]} Ne7 {[%emt 0:00:02]} 25. Bb4 {[%emt 0:00:13]} Nf5 {[%emt 0:00:09]} 26. b3 {[%emt 0:00:05]} Nd4 {[%emt 0:00:16]} 27. Qf2 {[%emt 0:00:06]} Nf5 {[%emt 0:00:07]} 28. Qxa7 {[%emt 0:00:04]} Qe7 {[%emt 0:00:20]} 29. Bxe7 Rxe7 1-0

[Event "GER-chW Blitz 2019"]
[Site "Magdeburg"]
[Date "2019.05.25"]
[Round "22.5"]
[White "Hofmann, Karina"]
[Black "Kunze, Kerstin"]
[Result "0-1"]
[ECO "A03"]
[WhiteElo "1700"]
[BlackElo "2066"]
[Annotator "NA"]
[PlyCount "48"]
[EventDate "2019.05.25"]
[EventType "tourn"]
[EventCountry "GER"]
[SourceTitle "playchess.com"]
[Source "ChessBase"]
[SourceQuality "1"]
[TimeControl "180+2"]

1. f4 {[%emt 0:00:00]} d5 {[%emt 0:00:02]} 2. Nf3 {[%emt 0:00:00]} Nf6 {[%emt 0:00:01]} 3. e3 {[%emt 0:00:01]} e6 {[%emt 0:00:02]} 4. b3 {[%emt 0:00:01]} c5 {[%emt 0:00:02]} 5. Bb5+ {[%emt 0:00:01]} Bd7 {[%emt 0:00:03]} 6. Bxd7+ {[%emt 0:00:02]} Nbxd7 {[%emt 0:00:05]} 7. Bb2 {[%emt 0:00:01]} Bd6 {[%emt 0:00:07]} 8. d3 {[%emt 0:00:01]} O-O {[%emt 0:00:02]} 9. Nbd2 {[%emt 0:00:01]} Qc7 {[%emt 0:00:08]} 10. Qe2 {[%emt 0:00:04]} e5 {[%emt 0:00:05]} 11. fxe5 {[%emt 0:00:02]} Nxe5 {[%emt 0:00:02]} 12. O-O-O {[%emt 0:00:11]} b5 {[%emt 0:00:18]} 13. Nxe5 {[%emt 0:00:12]} Bxe5 {[%emt 0:00:01]} 14. g4 {[%emt 0:00:04]} Bxb2+ {[%emt 0:00:26]} 15. Kxb2 {[%emt 0:00:01]} c4 {[%emt 0:00:01]} 16. dxc4 {[%emt 0:00:06]} bxc4 {[%emt 0:00:02]} 17. Nb1 {[%emt 0:00:16]} Rfd8 {[%emt 0:00:31]} 18. Rd4 {[%emt 0:00:16]} a5 {[%emt 0:00:10]} 19. Nc3 {[%emt 0:00:22]} Rac8 {[%emt 0:00:05]} 20. g5 {[%emt 0:00:04]} cxb3 {[%emt 0:00:05]} 21. gxf6 {[%emt 0:00:17]} Qxc3+ {[%emt 0:00:02]} 22. Kb1 {[%emt 0:00:06]} bxc2+ {[%emt 0:00:02]} 23. Kc1 {[%emt 0:00:04]} Qa1+ {[%emt 0:00:04]} 24. Kd2 {[%emt 0:00:02]} Qxh1 {[%emt 0:00:02]} 0-1

[Event "GER-chW Blitz 2019"]
[Site "Magdeburg"]
[Date "2019.05.25"]
[Round "22.6"]
[White "Birkholz, Olga"]
[Black "Gheng, Simona"]
[Result "1-0"]
[ECO "B20"]
[WhiteElo "2031"]
[BlackElo "1991"]
[Annotator "NA"]
[PlyCount "79"]
[EventDate "2019.05.25"]
[EventType "tourn"]
[EventCountry "GER"]
[SourceTitle "playchess.com"]
[Source "ChessBase"]
[SourceQuality "1"]
[TimeControl "180+2"]

1. e4 {[%emt 0:00:00]} c5 {[%emt 0:00:00]} 2. b3 {[%emt 0:00:00]} d6 {[%emt 0:00:00]} 3. Bb2 {[%emt 0:00:01]} Nf6 {[%emt 0:00:01]} 4. Qe2 {[%emt 0:00:01]} g6 {[%emt 0:00:01]} 5. f4 {[%emt 0:00:02]} Bg7 {[%emt 0:00:02]} 6. Nf3 {[%emt 0:00:01]} Nc6 {[%emt 0:00:01]} 7. Nc3 {[%emt 0:00:03]} O-O {[%emt 0:00:01]} 8. g3 {[%emt 0:00:00]} Nd4 {[%emt 0:00:05]} 9. Nxd4 cxd4 {[%emt 0:00:01]} 10. Nd1 {[%emt 0:00:05]} e5 {[%emt 0:00:01]} 11. Bg2 {[%emt 0:00:09]} Bg4 {[%emt 0:00:13]} 12. Bf3 {[%emt 0:00:03]} Bxf3 {[%emt 0:00:05]} 13. Qxf3 {[%emt 0:00:01]} Qc7 {[%emt 0:00:04]} 14. Rc1 {[%emt 0:00:06]} Qa5 {[%emt 0:00:05]} 15. O-O {[%emt 0:00:10]} Rac8 {[%emt 0:00:06]} 16. Qe2 {[%emt 0:00:10]} Qc5 {[%emt 0:00:08]} 17. d3 {[%emt 0:00:05]} b5 {[%emt 0:00:04]} 18. Nf2 {[%emt 0:00:20]} a5 {[%emt 0:00:03]} 19. Kg2 {[%emt 0:00:09]} b4 {[%emt 0:00:02]} 20. Ng4 {[%emt 0:00:22]} Nxg4 {[%emt 0:00:03]} 21. Qxg4 {[%emt 0:00:01]} h5 {[%emt 0:00:18]} 22. Qf3 {[%emt 0:00:08]} Qc6 {[%emt 0:00:25]} 23. f5 {[%emt 0:00:04]} Bh6 {[%emt 0:00:14]} 24. f6 {[%emt 0:00:10]} Bxc1 {[%emt 0:00:17]} 25. Rxc1 {[%emt 0:00:02]} Kh7 {[%emt 0:00:01]} 26. g4 {[%emt 0:00:09]} hxg4 {[%emt 0:00:08]} 27. Qxg4 {[%emt 0:00:02]} Rh8 {[%emt 0:00:07]} 28. Qg3 {[%emt 0:00:18]} Kg8 {[%emt 0:00:08]} 29. h4 {[%emt 0:00:09]} Rh5 {[%emt 0:00:03]} 30. Rf1 {[%emt 0:00:10]} Qxc2+ {[%emt 0:00:02]} 31. Rf2 {[%emt 0:00:01]} Qd1 {[%emt 0:00:09]} 32. Qh3 {[%emt 0:00:05]} Rc2 {[%emt 0:00:05]} 33. Qd7 {[%emt 0:00:16]} Rxf2+ {[%emt 0:00:03]} 34. Kxf2 {[%emt 0:00:01]} Qc2+ {[%emt 0:00:13]} 35. Ke1 {[%emt 0:00:07]} Qb1+ {[%emt 0:00:06]} 36. Kf2 {[%emt 0:00:05]} Qxb2+ 37. Kg3 {[%emt 0:00:03]} Rh8 {[%emt 0:00:26]} 38. Qe8+ {[%emt 0:00:04]} Kh7 {[%emt 0:00:01]} 39. Qxf7+ {[%emt 0:00:01]} Kh6 {[%emt 0:00:00]} 40. Qg7+ {[%emt 0:00:08]} 1-0

[Event "GER-chW Blitz 2019"]
[Site "Magdeburg"]
[Date "2019.05.25"]
[Round "22.7"]
[White "Rath, Alina"]
[Black "Kopylov, Luba"]
[Result "1/2-1/2"]
[ECO "A21"]
[WhiteElo "2042"]
[BlackElo "2078"]
[Annotator "NA"]
[PlyCount "62"]
[EventDate "2019.05.25"]
[EventType "tourn"]
[EventCountry "GER"]
[SourceTitle "playchess.com"]
[Source "ChessBase"]
[SourceQuality "1"]
[TimeControl "180+2"]

1. c4 {[%emt 0:00:00]} e5 {[%emt 0:00:00]} 2. Nc3 {[%emt 0:00:01]} Bb4 {[%emt 0:00:02]} 3. g3 {[%emt 0:00:01]} Bxc3 {[%emt 0:00:02]} 4. dxc3 {[%emt 0:00:02]} Nf6 {[%emt 0:00:04]} 5. Bg2 {[%emt 0:00:01]} c6 {[%emt 0:00:08]} 6. Nf3 {[%emt 0:00:02]} Qc7 {[%emt 0:00:02]} 7. O-O {[%emt 0:00:03]} d5 {[%emt 0:00:04]} 8. cxd5 {[%emt 0:00:06]} cxd5 {[%emt 0:00:02]} 9. Bg5 {[%emt 0:00:08]} Nbd7 {[%emt 0:00:03]} 10. Nd2 {[%emt 0:00:07]} h6 {[%emt 0:00:04]} 11. Bxf6 {[%emt 0:00:12]} Nxf6 {[%emt 0:00:02]} 12. Rc1 {[%emt 0:00:05]} Be6 {[%emt 0:00:03]} 13. b3 {[%emt 0:00:02]} O-O {[%emt 0:00:04]} 14. c4 {[%emt 0:00:02]} dxc4 {[%emt 0:00:10]} 15. Nxc4 {[%emt 0:00:02]} Rfd8 {[%emt 0:00:03]} 16. Qe1 {[%emt 0:00:02]} Bxc4 {[%emt 0:00:22]} 17. Rxc4 {[%emt 0:00:02]} Qe7 {[%emt 0:00:14]} 18. Qc3 {[%emt 0:00:16]} e4 {[%emt 0:00:10]} 19. Rc1 {[%emt 0:00:11]} Nd5 {[%emt 0:00:05]} 20. Qc2 {[%emt 0:00:19]} f5 {[%emt 0:00:02]} 21. Qb2 {[%emt 0:00:09]} b5 {[%emt 0:00:10]} 22. Rc5 {[%emt 0:00:05]} b4 {[%emt 0:00:06]} 23. R5c4 {[%emt 0:00:09]} Nc3 {[%emt 0:00:05]} 24. h4 {[%emt 0:00:14]} a5 {[%emt 0:00:06]} 25. Re1 {[%emt 0:00:09]} Qf6 {[%emt 0:00:13]} 26. Qc2 {[%emt 0:00:11]} Rd7 {[%emt 0:00:08]} 27. f3 {[%emt 0:00:08]} Rad8 {[%emt 0:00:12]} 28. Bf1 {[%emt 0:00:40]} Rd2 {[%emt 0:00:05]} 29. Qc1 {[%emt 0:00:03]} exf3 {[%emt 0:00:08]} 30. exf3 {[%emt 0:00:02]} Qb6+ {[%emt 0:00:01]} 31. Kh1 {[%emt 0:00:02]} Qf2 {[%emt 0:00:07]} 1/2-1/2

[Event "GER-chW Blitz 2019"]
[Site "Magdeburg"]
[Date "2019.05.25"]
[Round "22.8"]
[White "Silz, Elisa"]
[Black "Zimmer, Elke"]
[Result "0-1"]
[ECO "D66"]
[WhiteElo "1977"]
[BlackElo "1926"]
[Annotator "NA"]
[PlyCount "95"]
[EventDate "2019.05.25"]
[EventType "tourn"]
[EventCountry "GER"]
[SourceTitle "playchess.com"]
[Source "ChessBase"]
[SourceQuality "1"]
[TimeControl "180+2"]

1. d4 {[%emt 0:00:00]} d5 {[%emt 0:00:00]} 2. c4 {[%emt 0:00:00]} e6 {[%emt 0:00:02]} 3. Nc3 {[%emt 0:00:01]} Nf6 {[%emt 0:00:02]} 4. Bg5 {[%emt 0:00:01]} Be7 {[%emt 0:00:02]} 5. e3 O-O {[%emt 0:00:08]} 6. Rc1 {[%emt 0:00:02]} Nbd7 {[%emt 0:00:12]} 7. Nf3 {[%emt 0:00:01]} c6 {[%emt 0:00:01]} 8. Bd3 {[%emt 0:00:02]} h6 {[%emt 0:00:02]} 9. Bf4 {[%emt 0:00:01]} Nh5 {[%emt 0:00:11]} 10. Be5 {[%emt 0:00:02]} Nhf6 {[%emt 0:00:14]} 11. O-O {[%emt 0:00:05]} Nxe5 {[%emt 0:00:02]} 12. Nxe5 {[%emt 0:00:01]} Nd7 {[%emt 0:00:01]} 13. f4 {[%emt 0:00:03]} Nxe5 {[%emt 0:00:11]} 14. fxe5 {[%emt 0:00:05]} Bg5 {[%emt 0:00:05]} 15. Rf3 {[%emt 0:00:11]} f6 {[%emt 0:00:09]} 16. exf6 {[%emt 0:00:08]} Rxf6 {[%emt 0:00:03]} 17. Qe2 {[%emt 0:00:25]} Rxf3 {[%emt 0:00:10]} 18. gxf3 {[%emt 0:00:04]} Bh4 {[%emt 0:00:07]} 19. Kh1 {[%emt 0:00:07]} Qf6 {[%emt 0:00:09]} 20. Rg1 {[%emt 0:00:11]} e5 {[%emt 0:00:03]} 21. Rg6 {[%emt 0:00:05]} Qf7 {[%emt 0:00:17]} 22. dxe5 {[%emt 0:00:05]} Bf5 {[%emt 0:00:05]} 23. Bxf5 {[%emt 0:00:31]} Qxf5 {[%emt 0:00:01]} 24. Rg4 {[%emt 0:00:03]} Be7 {[%emt 0:00:09]} 25. cxd5 {[%emt 0:00:06]} cxd5 {[%emt 0:00:06]} 26. f4 {[%emt 0:00:08]} Rd8 {[%emt 0:00:09]} 27. Qg2 {[%emt 0:00:07]} Bf8 {[%emt 0:00:03]} 28. Nxd5 {[%emt 0:00:07]} Qb1+ {[%emt 0:00:07]} 29. Qg1 {[%emt 0:00:04]} Qxg1+ {[%emt 0:00:02]} 30. Rxg1 {[%emt 0:00:02]} Rxd5 {[%emt 0:00:01]} 31. Kg2 {[%emt 0:00:09]} Rd2+ {[%emt 0:00:02]} 32. Kf3 {[%emt 0:00:01]} Rxb2 {[%emt 0:00:02]} 33. f5 {[%emt 0:00:04]} Kf7 {[%emt 0:00:03]} 34. Kf4 {[%emt 0:00:09]} Rf2+ {[%emt 0:00:02]} 35. Ke4 {[%emt 0:00:02]} b5 {[%emt 0:00:04]} 36. e6+ {[%emt 0:00:02]} Kf6 {[%emt 0:00:01]} 37. Rg6+ {[%emt 0:00:02]} Ke7 {[%emt 0:00:02]} 38. Ke5 {[%emt 0:00:18]} Rxa2 {[%emt 0:00:03]} 39. h4 {[%emt 0:00:02]} b4 {[%emt 0:00:01]} 40. Rg4 {[%emt 0:00:02]} Ra5+ {[%emt 0:00:02]} 41. Kf4 {[%emt 0:00:02]} b3 {[%emt 0:00:02]} 42. Rg2 {[%emt 0:00:07]} Ra2 {[%emt 0:00:05]} 43. Rg1 {[%emt 0:00:00]} b2 {[%emt 0:00:02]} 44. Rd1 {[%emt 0:00:02]} a5 {[%emt 0:00:06]} 45. e4 {[%emt 0:00:04]} Ra1 {[%emt 0:00:10]} 46. Rd7+ {[%emt 0:00:01]} Ke8 {[%emt 0:00:01]} 47. Ke5 {[%emt 0:00:13]} b1=Q {[%emt 0:00:05]} 48. Kd4 0-1

[Event "GER-chW Blitz 2019"]
[Site "Magdeburg"]
[Date "2019.05.25"]
[Round "22.9"]
[White "Kotyk, Valeriya"]
[Black "Mader, Lena"]
[Result "1-0"]
[ECO "A45"]
[WhiteElo "1739"]
[BlackElo "1839"]
[Annotator "NA"]
[PlyCount "91"]
[EventDate "2019.05.25"]
[EventType "tourn"]
[EventCountry "GER"]
[SourceTitle "playchess.com"]
[Source "ChessBase"]
[SourceQuality "1"]
[TimeControl "180+2"]

1. d4 {[%emt 0:00:00]} Nf6 {[%emt 0:00:00]} 2. Bg5 {[%emt 0:00:00]} g6 {[%emt 0:00:04]} 3. Bxf6 {[%emt 0:00:01]} exf6 {[%emt 0:00:01]} 4. c4 {[%emt 0:00:02]} d6 {[%emt 0:00:06]} 5. Nc3 {[%emt 0:00:01]} Bg7 {[%emt 0:00:03]} 6. e3 {[%emt 0:00:01]} O-O {[%emt 0:00:02]} 7. g3 {[%emt 0:00:01]} f5 {[%emt 0:00:12]} 8. Bg2 {[%emt 0:00:02]} Nd7 {[%emt 0:00:10]} 9. Nge2 {[%emt 0:00:02]} c5 {[%emt 0:00:22]} 10. O-O {[%emt 0:00:09]} Nb6 {[%emt 0:00:06]} 11. b3 {[%emt 0:00:11]} a6 {[%emt 0:00:16]} 12. Rc1 {[%emt 0:00:03]} Rb8 {[%emt 0:00:19]} 13. Qc2 {[%emt 0:00:03]} Be6 {[%emt 0:00:20]} 14. Rcd1 {[%emt 0:00:06]} Qc7 {[%emt 0:00:05]} 15. d5 {[%emt 0:00:13]} Bc8 {[%emt 0:00:07]} 16. e4 {[%emt 0:00:08]} fxe4 {[%emt 0:00:07]} 17. Nxe4 {[%emt 0:00:02]} Bf5 {[%emt 0:00:02]} 18. N2c3 {[%emt 0:00:03]} Rbe8 {[%emt 0:00:06]} 19. Rfe1 {[%emt 0:00:04]} Nd7 {[%emt 0:00:27]} 20. Qd2 {[%emt 0:00:16]} Ne5 {[%emt 0:00:05]} 21. f3 {[%emt 0:00:21]} Bd7 {[%emt 0:00:07]} 22. Kh1 {[%emt 0:00:15]} b5 {[%emt 0:00:04]} 23. f4 {[%emt 0:00:10]} Ng4 {[%emt 0:00:05]} 24. h3 {[%emt 0:00:06]} Nh6 {[%emt 0:00:01]} 25. Qc1 {[%emt 0:00:33]} bxc4 {[%emt 0:00:01]} 26. bxc4 {[%emt 0:00:01]} Bf5 {[%emt 0:00:05]} 27. Ng5 {[%emt 0:00:10]} Rb8 {[%emt 0:00:09]} 28. Be4 {[%emt 0:00:08]} Bxe4+ {[%emt 0:00:04]} 29. Ngxe4 {[%emt 0:00:01]} Nf5 {[%emt 0:00:02]} 30. Qd2 {[%emt 0:00:07]} Nd4 {[%emt 0:00:01]} 31. Kg2 {[%emt 0:00:03]} Rb7 {[%emt 0:00:05]} 32. Rb1 {[%emt 0:00:01]} Rfb8 {[%emt 0:00:01]} 33. Rxb7 {[%emt 0:00:01]} Rxb7 {[%emt 0:00:01]} 34. Rb1 {[%emt 0:00:03]} h6 {[%emt 0:00:02]} 35. Rxb7 {[%emt 0:00:04]} Qxb7 {[%emt 0:00:01]} 36. Nxd6 {[%emt 0:00:03]} Qd7 {[%emt 0:00:04]} 37. Nde4 {[%emt 0:00:02]} Nf5 {[%emt 0:00:02]} 38. Nxc5 {[%emt 0:00:05]} Qa7 {[%emt 0:00:02]} 39. N5e4 {[%emt 0:00:04]} Bd4 {[%emt 0:00:05]} 40. Ne2 {[%emt 0:00:07]} Bg7 {[%emt 0:00:01]} 41. c5 {[%emt 0:00:03]} Qe7 {[%emt 0:00:02]} 42. N4c3 {[%emt 0:00:05]} Bxc3 {[%emt 0:00:04]} 43. Nxc3 {[%emt 0:00:02]} Qc7 {[%emt 0:00:04]} 44. c6 {[%emt 0:00:02]} Qd6 {[%emt 0:00:01]} 45. Ne4 {[%emt 0:00:03]} Qb4 {[%emt 0:00:02]} 46. Qxb4 {[%emt 0:00:03]} 1-0

[Event "GER-chW Blitz 2019"]
[Site "Magdeburg"]
[Date "2019.05.25"]
[Round "22.10"]
[White "Fuchs, Judith"]
[Black "Braje, Monika"]
[Result "1-0"]
[ECO "D00"]
[WhiteElo "2218"]
[BlackElo "1781"]
[Annotator "NA"]
[PlyCount "113"]
[EventDate "2019.05.25"]
[EventType "tourn"]
[EventCountry "GER"]
[SourceTitle "playchess.com"]
[Source "ChessBase"]
[SourceQuality "1"]
[TimeControl "180+2"]

1. d4 {[%emt 0:00:00]} d5 {[%emt 0:00:00]} 2. Bf4 {[%emt 0:00:00]} Nf6 {[%emt 0:00:00]} 3. e3 {[%emt 0:00:01]} e6 {[%emt 0:00:01]} 4. Nf3 {[%emt 0:00:01]} c5 {[%emt 0:00:01]} 5. c3 {[%emt 0:00:01]} c4 {[%emt 0:00:01]} 6. Nbd2 {[%emt 0:00:10]} Bd6 {[%emt 0:00:02]} 7. Bg3 {[%emt 0:00:02]} O-O {[%emt 0:00:02]} 8. Qc2 {[%emt 0:00:05]} h6 {[%emt 0:00:02]} 9. e4 {[%emt 0:00:04]} Bxg3 {[%emt 0:00:11]} 10. hxg3 {[%emt 0:00:02]} b5 {[%emt 0:00:03]} 11. e5 {[%emt 0:00:03]} Nh7 {[%emt 0:00:10]} 12. a3 {[%emt 0:00:25]} f5 {[%emt 0:00:06]} 13. exf6 {[%emt 0:00:05]} Qxf6 {[%emt 0:00:01]} 14. Be2 {[%emt 0:00:13]} Nc6 {[%emt 0:00:07]} 15. Nf1 {[%emt 0:00:08]} e5 {[%emt 0:00:18]} 16. dxe5 {[%emt 0:00:09]} Nxe5 {[%emt 0:00:01]} 17. O-O-O {[%emt 0:00:07]} Bf5 {[%emt 0:00:07]} 18. Qd2 {[%emt 0:00:09]} Be4 {[%emt 0:00:02]} 19. Nxe5 Qxe5 20. f3 {[%emt 0:00:12]} Bg6 {[%emt 0:00:42]} 21. Qxd5+ {[%emt 0:00:07]} Qxd5 {[%emt 0:00:00]} 22. Rxd5 {[%emt 0:00:01]} Rab8 {[%emt 0:00:01]} 23. Rxb5 {[%emt 0:00:21]} Rbc8 {[%emt 0:00:15]} 24. Nd2 {[%emt 0:00:05]} Bf7 25. Rh4 {[%emt 0:00:08]} Rfe8 {[%emt 0:00:10]} 26. Bxc4 {[%emt 0:00:12]} Re1+ {[%emt 0:01:06]} 27. Kc2 {[%emt 0:00:01]} Rxc4 {[%emt 0:00:14]} 28. Nxc4 {[%emt 0:00:18]} Bg6+ {[%emt 0:00:02]} 29. Kd2 {[%emt 0:00:07]} Rg1 {[%emt 0:00:02]} 30. Rb8+ {[%emt 0:00:04]} Kf7 {[%emt 0:00:01]} 31. Ne5+ {[%emt 0:00:05]} Kf6 {[%emt 0:00:01]} 32. Nxg6 {[%emt 0:00:03]} Kxg6 33. Rg4+ {[%emt 0:00:05]} Kf6 {[%emt 0:00:02]} 34. Re8 {[%emt 0:00:09]} Rxg2+ {[%emt 0:00:04]} 35. Re2 {[%emt 0:00:02]} Rg1 {[%emt 0:00:01]} 36. c4 {[%emt 0:00:03]} Ng5 {[%emt 0:00:02]} 37. Rf4+ {[%emt 0:00:03]} Kg6 {[%emt 0:00:02]} 38. g4 {[%emt 0:00:03]} Rf1 {[%emt 0:00:04]} 39. Ke3 {[%emt 0:00:06]} Ne6 {[%emt 0:00:07]} 40. Re4 {[%emt 0:00:02]} Nc5 {[%emt 0:00:01]} 41. Re5 {[%emt 0:00:01]} Nd7 {[%emt 0:00:00]} 42. Re6+ {[%emt 0:00:01]} Kf7 {[%emt 0:00:01]} 43. Rd6 {[%emt 0:00:01]} Nf6 {[%emt 0:00:01]} 44. c5 {[%emt 0:00:02]} Rc1 {[%emt 0:00:01]} 45. b4 {[%emt 0:00:01]} a5 {[%emt 0:00:02]} 46. Red2 {[%emt 0:00:03]} Rc3+ {[%emt 0:00:01]} 47. R2d3 {[%emt 0:00:01]} Rc2 {[%emt 0:00:01]} 48. c6 {[%emt 0:00:01]} Ne8 {[%emt 0:00:02]} 49. Rd7+ {[%emt 0:00:01]} Ke6 {[%emt 0:00:01]} 50. Rd8 {[%emt 0:00:04]} Nc7 {[%emt 0:00:01]} 51. R8d6+ {[%emt 0:00:02]} Ke7 {[%emt 0:00:01]} 52. Rd7+ {[%emt 0:00:00]} Ke6 {[%emt 0:00:01]} 53. Rxc7 {[%emt 0:00:01]} Rc1 {[%emt 0:00:03]} 54. b5 {[%emt 0:00:03]} Re1+ {[%emt 0:00:01]} 55. Kf2 {[%emt 0:00:01]} Rc1 {[%emt 0:00:02]} 56. b6 {[%emt 0:00:00]} Rb1 {[%emt 0:00:01]} 57. b7 {[%emt 0:00:01] Kd5} 1-0

[Event "GER-chW Blitz 2019"]
[Site "Magdeburg"]
[Date "2019.05.25"]
[Round "22.11"]
[White "Lubbe, Melanie"]
[Black "Schulze, Lara"]
[Result "0-1"]
[ECO "A45"]
[WhiteElo "2278"]
[BlackElo "2160"]
[Annotator "NA"]
[PlyCount "76"]
[EventDate "2019.05.25"]
[EventType "tourn"]
[EventCountry "GER"]
[SourceTitle "playchess.com"]
[Source "ChessBase"]
[SourceQuality "1"]
[TimeControl "180+2"]

1. d4 {[%emt 0:00:00]} Nf6 {[%emt 0:00:00]} 2. Nc3 {[%emt 0:00:00]} d5 {[%emt 0:00:04]} 3. Bf4 {[%emt 0:00:00]} a6 {[%emt 0:00:27]} 4. e3 {[%emt 0:00:05]} e6 {[%emt 0:00:06]} 5. g4 {[%emt 0:00:01]} c5 {[%emt 0:00:04]} 6. g5 {[%emt 0:00:08]} Nfd7 {[%emt 0:00:02]} 7. h4 {[%emt 0:00:15]} Nc6 {[%emt 0:00:04]} 8. Nf3 {[%emt 0:00:04]} b5 {[%emt 0:00:04]} 9. a3 {[%emt 0:00:11]} Qb6 {[%emt 0:00:57]} 10. Bh3 {[%emt 0:00:10]} cxd4 {[%emt 0:00:43]} 11. exd4 {[%emt 0:00:02]} Na5 {[%emt 0:00:16]} 12. b3 {[%emt 0:00:55]} Bd6 {[%emt 0:00:07]} 13. Qd2 {[%emt 0:00:05]} Bb7 {[%emt 0:00:06]} 14. h5 {[%emt 0:00:09]} Qc7 {[%emt 0:00:11]} 15. Bxd6 {[%emt 0:00:04]} Qxd6 {[%emt 0:00:01]} 16. Ne2 {[%emt 0:00:14]} Nc6 {[%emt 0:00:01]} 17. a4 {[%emt 0:00:07]} b4 {[%emt 0:00:02]} 18. O-O-O {[%emt 0:00:03]} O-O-O {[%emt 0:00:01]} 19. Nf4 {[%emt 0:00:04]} Kb8 {[%emt 0:00:03]} 20. g6 {[%emt 0:00:06]} hxg6 {[%emt 0:00:01]} 21. hxg6 {[%emt 0:00:01]} f5 {[%emt 0:00:02]} 22. Rhe1 {[%emt 0:00:03]} Rde8 {[%emt 0:00:02]} 23. Ng5 {[%emt 0:00:09]} Nd8 {[%emt 0:00:04]} 24. Re2 {[%emt 0:00:12]} Nf6 {[%emt 0:00:01]} 25. f3 {[%emt 0:00:10]} Rh4 {[%emt 0:00:02]} 26. Nf7 {[%emt 0:00:05]} Qxf4 {[%emt 0:00:06]} 27. Qxf4+ {[%emt 0:00:05]} Rxf4 {[%emt 0:00:00]} 28. Nxd8 {[%emt 0:00:04]} Rxd8 29. Rxe6 {[%emt 0:00:01]} Re8 {[%emt 0:00:04]} 30. Rde1 {[%emt 0:00:06]} Rxe6 {[%emt 0:00:02]} 31. Rxe6 {[%emt 0:00:01]} Rxf3 {[%emt 0:00:01]} 32. Bg2 {[%emt 0:00:08]} Rf2 {[%emt 0:00:01]} 33. Bh3 {[%emt 0:00:01]} Rh2 {[%emt 0:00:03]} 34. Bxf5 {[%emt 0:00:01]} Bc8 {[%emt 0:00:05]} 35. Rb6+ {[%emt 0:00:08]} Kc7 {[%emt 0:00:02]} 36. Rxf6 {[%emt 0:00:10]} gxf6 {[%emt 0:00:01]} 37. g7 {[%emt 0:00:01]} Rg2 {[%emt 0:00:02]} 38. Bxc8 Kxc8 0-1

[Event "GER-chW Blitz 2019"]
[Site "Magdeburg"]
[Date "2019.05.25"]
[Round "22.12"]
[White "Ries, Jutta"]
[Black "Kushka, Alena"]
[Result "1-0"]
[ECO "A03"]
[WhiteElo "2017"]
[BlackElo "2148"]
[Annotator "NA"]
[PlyCount "77"]
[EventDate "2019.05.25"]
[EventType "tourn"]
[EventCountry "GER"]
[SourceTitle "playchess.com"]
[Source "ChessBase"]
[SourceQuality "1"]
[TimeControl "180+2"]

1. f4 {[%emt 0:00:00]} d5 {[%emt 0:00:00]} 2. Nf3 {[%emt 0:00:00]} c5 {[%emt 0:00:00]} 3. b3 {[%emt 0:00:01]} Nc6 {[%emt 0:00:02]} 4. Bb2 {[%emt 0:00:01]} Nf6 {[%emt 0:00:02]} 5. e3 {[%emt 0:00:01]} g6 {[%emt 0:00:03]} 6. Bb5 {[%emt 0:00:07]} Bg7 {[%emt 0:00:03]} 7. Bxc6+ {[%emt 0:00:04]} bxc6 {[%emt 0:00:01]} 8. O-O {[%emt 0:00:01]} O-O {[%emt 0:00:01]} 9. Qe2 {[%emt 0:00:01]} a5 {[%emt 0:00:02]} 10. d3 {[%emt 0:00:01]} Ba6 {[%emt 0:00:08]} 11. Nbd2 {[%emt 0:00:02]} Rb8 {[%emt 0:00:07]} 12. Ne5 {[%emt 0:00:05]} Qc7 {[%emt 0:00:05]} 13. Ba3 {[%emt 0:00:28]} Qb6 {[%emt 0:00:09]} 14. Rab1 {[%emt 0:00:07]} Rfe8 {[%emt 0:00:19]} 15. Ndf3 {[%emt 0:00:11]} c4 {[%emt 0:00:19]} 16. bxc4 {[%emt 0:00:31]} Qxb1 {[%emt 0:00:02]} 17. Rxb1 {[%emt 0:00:00]} Rxb1+ {[%emt 0:00:01]} 18. Ne1 {[%emt 0:00:52]} dxc4 {[%emt 0:00:02]} 19. Nxc6 {[%emt 0:00:13]} cxd3 {[%emt 0:00:11]} 20. cxd3 {[%emt 0:00:01]} Nd5 {[%emt 0:00:08]} 21. Kf2 {[%emt 0:00:16]} e5 {[%emt 0:00:22]} 22. Qc2 {[%emt 0:00:10]} Rb6 {[%emt 0:00:53]} 23. Nxe5 {[%emt 0:00:09]} Bxe5 {[%emt 0:00:05]} 24. fxe5 {[%emt 0:00:01]} Rxe5 {[%emt 0:00:04]} 25. Bc5 {[%emt 0:00:07]} Rf5+ {[%emt 0:00:05]} 26. Kg3 {[%emt 0:00:07]} Rg5+ {[%emt 0:00:07]} 27. Kf3 {[%emt 0:00:02]} Rf6+ {[%emt 0:00:05]} 28. Ke2 {[%emt 0:00:05]} Re6 {[%emt 0:00:05]} 29. e4 {[%emt 0:00:04]} Nf4+ {[%emt 0:00:01]} 30. Kd1 {[%emt 0:00:01]} h5 {[%emt 0:00:10]} 31. Be3 {[%emt 0:00:01]} Nxg2 {[%emt 0:00:10]} 32. Nxg2 {[%emt 0:00:01]} Rb5 {[%emt 0:00:02]} 33. Ne1 {[%emt 0:00:04]} Kh7 {[%emt 0:00:03]} 34. Bd2 {[%emt 0:00:02]} h4 {[%emt 0:00:03]} 35. Qc7 {[%emt 0:00:03]} Rb1+ {[%emt 0:00:03]} 36. Ke2 {[%emt 0:00:01]} Rxe4+ {[%emt 0:00:03]} 37. Kf2 {[%emt 0:00:00]} Bxd3 {[%emt 0:00:05]} 38. Qxf7+ {[%emt 0:00:02]} Kh8 39. Bc3+ 1-0